fUSD/lending_fUSD_20251026
["ID","MTS","AMOUNT","RATE_DAILY","PERIOD"]
[392467732,1761521450361,-500.0,0.00044109,120]
[392467733,1761521450371,-1000.0,0.00044109,120]
[392467734,1761521450380,-500.0,0.00044109,2]
[392467735,1761521450389,-500.0,0.00044109,7]
[392467736,1761521450398,-500.0,0.00044109,120]
[392467737,1761521450407,-535.98,0.00044109,120]
[392467738,1761521450416,-182.9,0.00044109,120]
[392467739,1761521450425,-500.0,0.00044109,120]
[392467740,1761521450434,-500.0,0.00044109,120]
[392467741,1761521450443,-500.0,0.00044109,120]
[392467742,1761521450453,-300.0,0.00044109,2]
[392467743,1761521450463,-500.0,0.00044109,120]
[392467744,1761521450472,-537.39,0.00044109,120]
[392467745,1761521450482,-500.0,0.00044109,120]
[392467746,1761521450491,-407.0,0.00044109,120]
[392467747,1761521450501,-500.0,0.00044109,120]
[392467748,1761521450510,-604.07423748,0.00044109,120]
[392467749,1761521450519,-544.63612322,0.00044109,120]
[392467750,1761521450528,-1000.0,0.00044109,120]
[392467751,1761521450537,-513.59,0.00044109,2]
[392467752,1761521450547,-500.0,0.00044109,2]
[392467753,1761521450557,-500.0,0.00044109,2]
[392467754,1761521450566,-500.0,0.00044109,120]
[392467755,1761521450575,-500.0,0.00044109,120]
[392467756,1761521450608,-500.0,0.00044109,120]
[392467757,1761521450617,-500.0,0.00044109,2]
[392467758,1761521450627,-300.0,0.00044109,2]
[392467759,1761521450636,-500.0,0.00044109,120]
[392467760,1761521450646,-500.0,0.00044109,120]
[392467761,1761521450762,-600.0,0.00044109,120]
[392467762,1761521450773,-500.0,0.00044109,120]
[392467763,1761521450783,-500.0,0.00044109,120]
[392467764,1761521450791,-285.89,0.00044109,120]
[392467765,1761521450803,-500.0,0.00044109,120]
[392467766,1761521450813,-500.0,0.00044109,120]
[392467767,1761521450825,-500.0,0.00044109,120]
[392467768,1761521450835,-500.0,0.00044109,120]
[392467769,1761521450844,-500.0,0.00044109,120]
[392467770,1761521450853,-500.0,0.00044109,7]
[392467771,1761521450863,-582.02,0.00044109,120]
[392467772,1761521450872,-500.0,0.00044109,120]
[392467773,1761521450881,-500.0,0.00044109,120]
[392467774,1761521450891,-2656.43,0.00044109,14]
[392467775,1761521450899,-2433.49,0.00044109,2]
[392467776,1761521450908,-487.29,0.00044109,120]
[392467777,1761521450917,-500.0,0.00044109,120]
[392467778,1761521450926,-500.0,0.00044109,120]
[392467779,1761521450940,-208.14,0.00044109,120]
[392467780,1761521450955,-2572.3,0.00044109,120]
[392467781,1761521450965,-504.27,0.00044109,120]
[392467782,1761521450974,-500.0,0.00044109,120]
[392467783,1761521450983,-500.0,0.00044109,120]
[392467784,1761521450992,-500.0,0.00044109,2]
[392467785,1761521451001,-500.0,0.00044109,120]
[392467786,1761521451009,-387.22392989,0.00044109,120]
[392467787,1761521451019,-500.0,0.00044109,120]
[392467788,1761521451028,-1401.40130325,0.00044148,14]
[392467789,1761521451037,-1000.0,0.00044271,14]
[392467790,1761521451046,-164.65407731,0.0004434,28]
[392467791,1761521451055,-1401.40130325,0.0004438,15]
[392467792,1761521451064,-1000.0,0.00044383,2]
[392467793,1761521451072,-500.0,0.00044383,2]
[392467794,1761521451081,-500.0,0.00044383,120]
[392467795,1761521451090,-1000.0,0.00044383,120]
[392467796,1761521451099,-500.0,0.00044383,2]
[392467797,1761521451108,-500.0,0.00044383,7]
[392467798,1761521451117,-172.57916466,0.00044383,120]
[392467799,1761521451127,-500.0,0.00044383,120]
[392467800,1761521451136,-357.2454035,0.00044383,120]
[392467801,1761521451145,-500.0,0.00044383,120]
[392467802,1761521451154,-300.0,0.00044383,2]
[392467803,1761521451163,-500.0,0.00044383,120]
[392467804,1761521451172,-500.0,0.00044383,120]
[392467805,1761521451181,-220.63015368,0.00044383,120]
[392467806,1761521451190,-563.09128515,0.00044383,120]
[392467807,1761521451199,-513.59,0.00044383,2]
[392467808,1761521451208,-500.0,0.00044383,2]
[392467809,1761521451217,-500.0,0.00044383,2]
[392467810,1761521451227,-500.0,0.00044383,120]
[392467811,1761521451235,-500.0,0.00044383,120]
[392467812,1761521451244,-500.0,0.00044383,120]
[392467813,1761521451254,-500.0,0.00044383,2]
[392467814,1761521451263,-300.0,0.00044383,2]
[392467815,1761521451271,-500.0,0.00044383,120]
[392467816,1761521451280,-500.0,0.00044383,120]
[392467817,1761521451289,-600.0,0.00044383,120]
[392467818,1761521451299,-500.0,0.00044383,120]
[392467819,1761521451308,-240.90524539,0.00044383,120]
[392467820,1761521451317,-500.0,0.00044383,120]
[392467821,1761521451327,-500.0,0.00044383,120]
[392467822,1761521451336,-580.21510003,0.00044383,120]
[392467823,1761521451345,-500.0,0.00044383,120]
[392467824,1761521451355,-500.0,0.00044383,120]
[392467825,1761521451365,-500.0,0.00044383,7]
[392467826,1761521451374,-582.02,0.00044383,120]
[392467827,1761521451384,-500.0,0.00044383,120]
[392467828,1761521451393,-500.0,0.00044383,120]
[392467829,1761521451402,-2656.43,0.00044383,14]
[392467830,1761521451411,-2433.49,0.00044383,2]
[392467831,1761521451420,-500.0,0.00044383,120]
[392467832,1761521451430,-500.0,0.00044383,120]
[392467833,1761521451439,-2572.3,0.00044383,120]
[392467834,1761521451448,-504.27,0.00044383,120]
[392467835,1761521451457,-500.0,0.00044383,120]
[392467836,1761521451467,-500.0,0.00044383,120]
[392467837,1761521451476,-500.0,0.00044383,2]
[392467838,1761521451485,-500.0,0.00044383,120]
[392467839,1761521451494,-1000.0,0.00044383,30]
[392467840,1761521451503,-414.6,0.00044384,30]
[392467841,1761521451513,-414.6,0.00044384,30]
[392467842,1761521451522,-973.543,0.00044428,2]
[392467843,1761521451530,-1591.0,0.00044428,2]
[392467844,1761521451539,-606.0,0.00044428,2]
[392467845,1761521451548,-841.079,0.00044428,2]
[392467846,1761521451557,-1185.0,0.00044428,2]
[392467847,1761521451568,-904.0,0.00044428,2]
[392467848,1761521451577,-819.0,0.00044428,2]
[392467849,1761521451586,-2771.9128417,0.00044428,2]
[392467850,1761521451686,-3813.0871583,0.00044428,2]
[392467851,1761521451696,-3489.0,0.00044428,2]
[392467852,1761521451705,-573.0,0.00044428,2]
[392467853,1761521451714,-3647.53168428,0.00044444,120]
[392467854,1761521451723,-414.6,0.00044493,30]
[392467855,1761521451732,-414.6,0.00044493,30]
[392467856,1761521451743,-150.0,0.000445,120]
[392467857,1761521451758,-150.0,0.00044548,30]
[392467858,1761521451768,-414.6,0.00044548,30]
[392467859,1761521451778,-150.0,0.00044548,30]
[392467860,1761521451789,-829.2,0.00044548,30]
[392467861,1761521451799,-547.92,0.00044548,30]
[392467862,1761521451808,-150.0,0.00044548,30]
[392467863,1761521451818,-207.49,0.00044548,30]
[392467864,1761521451827,-414.6,0.00044548,30]
[392467865,1761521451836,-547.92,0.00044548,30]
[392467866,1761521451845,-1401.40130325,0.00044612,16]
[392467867,1761521451854,-286.51282012,0.00044614,14]
[392467868,1761521451864,-164.65407731,0.00044645,28]
[392467869,1761521451873,-1000.0,0.00044657,2]
[392467870,1761521451882,-500.0,0.00044657,2]
[392467871,1761521451892,-500.0,0.00044657,120]
[392467872,1761521451901,-1000.0,0.00044657,120]
[392467873,1761521451912,-500.0,0.00044657,2]
[392467874,1761521451922,-609.61240608,0.00044657,7]
[392467875,1761521451932,-500.0,0.00044657,120]
[392467876,1761521451941,-500.0,0.00044657,120]
[392467877,1761521451951,-300.0,0.00044657,2]
[392467878,1761521451960,-589.77940606,0.00044657,120]
[392467879,1761521451973,-500.0,0.00044657,120]
[392467880,1761521451984,-513.59,0.00044657,2]
[392467881,1761521451998,-500.0,0.00044657,2]
[392467882,1761521452010,-500.0,0.00044657,2]
[392467883,1761521452024,-500.0,0.00044657,120]
[392467884,1761521452035,-500.0,0.00044657,120]
[392467885,1761521452047,-500.0,0.00044657,2]
[392467886,1761521452059,-300.0,0.00044657,2]
[392467887,1761521452072,-500.0,0.00044657,120]
[392467888,1761521452085,-600.0,0.00044657,120]
[392467889,1761521452098,-590.72180838,0.00044657,120]
[392467890,1761521452110,-159.78579443,0.00044657,120]
[392467891,1761521452124,-500.0,0.00044657,120]
[392467892,1761521452135,-500.0,0.00044657,120]
[392467893,1761521452148,-500.0,0.00044657,7]
[392467894,1761521452161,-582.02,0.00044657,120]
[392467895,1761521452172,-251.43622538,0.00044657,120]
[392467896,1761521452183,-500.0,0.00044657,120]
[392467897,1761521452194,-2656.43,0.00044657,14]
[392467898,1761521452204,-2433.49,0.00044657,2]
[392467899,1761521452215,-500.0,0.00044657,120]
[392467900,1761521452229,-500.0,0.00044657,120]
[392467901,1761521452240,-2572.3,0.00044657,120]
[392467902,1761521452252,-504.27,0.00044657,120]
[392467903,1761521452264,-429.33629218,0.00044657,120]
[392467904,1761521452275,-502.46509745,0.00044657,2]
[392467905,1761521452287,-500.0,0.00044657,120]
[392467906,1761521452298,-572.28717988,0.00044755,2]
[392467907,1761521452310,-5555.35198078,0.00044788,120]
[392467908,1761521452323,-266.19907625,0.00044795,30]
[392467909,1761521452334,-260.71700305,0.00044795,30]
[392467910,1761521452345,-182.95396817,0.00044795,30]
[392467911,1761521452356,-15000.0,0.000448,120]
[392467912,1761521452368,-1401.40130325,0.00044843,17]
[392467913,1761521452379,-176.70461,0.0004486,25]
[392467914,1761521452391,-20000.0,0.00044897,120]
[392467915,1761521452402,-200.39686397,0.000449,120]
[392467916,1761521452412,-985.26344308,0.000449,30]
[392467917,1761521452425,-560.08,0.000449,14]
[392467918,1761521452436,-183.3,0.000449,51]
[392467919,1761521452447,-4314.24668182,0.000449,15]
[392467920,1761521452459,-8146.79764278,0.000449,60]
[392467921,1761521452471,-683.09098977,0.000449,120]
[392467922,1761521452485,-1676.06982313,0.000449,15]
[392467923,1761521452499,-169.11988859,0.000449,2]
[392467924,1761521452510,-256.37660803,0.000449,2]
[392467925,1761521452521,-570.66619608,0.000449,2]
[392467926,1761521452533,-1000.0,0.00044931,2]
[392467927,1761521452548,-500.0,0.00044931,2]
[392467928,1761521452558,-500.0,0.00044931,120]
[392467929,1761521452569,-1000.0,0.00044931,120]
[392467930,1761521452580,-500.0,0.00044931,2]
[392467931,1761521452592,-500.0,0.00044931,120]
[392467932,1761521452609,-500.0,0.00044931,120]
[392467933,1761521452619,-300.0,0.00044931,2]
[392467934,1761521452628,-270.28,0.00044931,120]
[392467935,1761521452639,-513.59,0.00044931,2]
[392467936,1761521452650,-500.0,0.00044931,2]
[392467937,1761521452664,-500.0,0.00044931,2]
[392467938,1761521452675,-500.0,0.00044931,120]
[392467939,1761521452688,-500.0,0.00044931,120]
[392467940,1761521452699,-500.0,0.00044931,2]
[392467941,1761521452710,-300.0,0.00044931,2]
[392467942,1761521452720,-500.0,0.00044931,120]
[392467943,1761521452731,-600.0,0.00044931,120]
[392467944,1761521452742,-500.0,0.00044931,120]
[392467945,1761521452755,-500.0,0.00044931,120]
[392467946,1761521452766,-500.0,0.00044931,7]
[392467947,1761521452776,-582.02,0.00044931,120]
[392467948,1761521452788,-500.0,0.00044931,120]
[392467949,1761521452800,-2656.43,0.00044931,14]
[392467950,1761521452812,-2433.49,0.00044931,2]
[392467951,1761521452824,-500.0,0.00044931,120]
[392467952,1761521452837,-500.0,0.00044931,120]
[392467953,1761521452849,-2572.3,0.00044931,120]
[392467954,1761521452860,-504.27,0.00044931,120]
[392467955,1761521452870,-500.0,0.00044931,120]
[392467956,1761521452880,-256.37660803,0.00044935,2]
[392467957,1761521452891,-164.65407731,0.0004495,28]
[392467958,1761521452902,-373.57020428,0.00044961,2]
[392467959,1761521452913,-400.0,0.0004497,3]
[392467960,1761521452925,-400.0,0.0004497,3]
[392467961,1761521452936,-400.0,0.0004497,3]
[392467962,1761521452948,-537.23979864,0.0004497,3]
[392467963,1761521452959,-400.0,0.0004497,3]
[392467964,1761521452969,-400.0,0.0004497,3]
[392467965,1761521452980,-400.0,0.0004497,3]
[392467966,1761521452992,-256.37660803,0.0004497,2]
[392467967,1761521453004,-165464.27492686,0.0004498,5]
[392467968,1761521453015,-205.38193086,0.0004499,7]
[392467969,1761521453026,-205.38193086,0.0004499,7]
[392467970,1761521453038,-500.0,0.00044998,7]
[392467971,1761521453049,-500.0,0.00044998,30]
[392467972,1761521453059,-679.44406131,0.00044998,2]
[392467973,1761521453070,-666.0,0.00044999,30]
[392467974,1761521453079,-308.30534958,0.00044999,30]
[392467975,1761521453088,-13850.0,0.00044999,120]
[392467976,1761521453097,-1235.763,0.00044999,30]
[392467977,1761521453106,-500.0,0.00044999,7]
[392467978,1761521453115,-500.0,0.00044999,7]
[392467979,1761521453124,-500.0,0.00044999,7]
[392467980,1761521453134,-500.0,0.00044999,7]
[392467981,1761521453143,-500.0,0.00044999,7]
[392467982,1761521453153,-500.0,0.00044999,7]
[392467983,1761521453162,-500.0,0.00044999,7]
[392467984,1761521453171,-500.0,0.00044999,7]
[392467985,1761521453181,-500.0,0.00044999,7]
[392467986,1761521453190,-500.0,0.00044999,7]
[392467987,1761521453199,-500.0,0.00044999,7]
[392467988,1761521453208,-500.0,0.00044999,7]
[392467989,1761521453217,-500.0,0.00044999,7]
[392467990,1761521453226,-204.06144706,0.00044999,7]
[392467991,1761521453235,-500.0,0.00044999,30]
[392467992,1761521453245,-500.0,0.00044999,30]
[392467993,1761521453254,-500.0,0.00044999,30]
[392467994,1761521453263,-500.0,0.00044999,30]
[392467995,1761521453273,-500.0,0.00044999,30]
[392467996,1761521453282,-500.0,0.00044999,30]
[392467997,1761521453291,-155.27,0.00044999,30]
[392467998,1761521453300,-11280.70090334,0.00045,61]
[392467999,1761521453310,-518157.67786528,0.00045,120]
[392468000,1761521453367,-153.0,0.00037794,90]
[392468001,1761521453376,-3415.0,0.00038428,2]
[392468002,1761521453386,-3415.0,0.00041428,2]
[392468003,1761521453395,-3415.0,0.00044428,2]
[392468004,1761521453404,-36670.788766,0.00045,120]
[392468005,1761521453415,-12141.45181262,0.00045,120]
[392468011,1761521586734,300.0,0.00030137,120]
[392468012,1761521654892,381.0,0.00031507,120]
[392468014,1761521865497,2576.3747483,0.00038861,120]
[392468016,1761522340097,-391.94,0.00020904,2]
[392468017,1761522340119,-179.95714155,0.00022004,2]
[392468019,1761522405095,-250.0,0.00017,2]
[392468020,1761522405118,-70.36053988,0.00022004,2]
[392468021,1761522430118,-141.62231857,0.00022004,2]
[392468022,1761522430140,-138.7633607,0.00023105,2]
[392468023,1761522443102,-253.1766393,0.00023105,2]
[392468024,1761522443126,-237.06088041,0.00024205,2]
[392468025,1761522444099,-154.87911959,0.00024205,2]
[392468026,1761522444123,-13.44394045,0.00025305,2]
[392468029,1761522567080,-277.11912862,0.00025305,2]
[392468030,1761522570913,799.1,0.00031507,120]
[392468034,1761522632248,-101.37693093,0.00025305,2]
[392468037,1761522632258,-240.90165745,0.00026,2]
[392468039,1761522632268,-391.94,0.00026405,2]
[392468040,1761522632278,-297.86060391,0.00026778,2]
[392468041,1761522632289,-202.82715782,0.00027397,5]
[392468042,1761522632299,-391.94,0.00027506,2]
[392468043,1761522632309,-391.94,0.00028606,2]
[392468044,1761522632320,-215.27123608,0.00029606,2]
[392468045,1761522632332,-391.94,0.00029706,2]
[392468046,1761522632343,-391.94,0.00030806,2]
[392468047,1761522632355,-391.94,0.00031906,2]
[392468048,1761522632366,-500.0,0.00032811,7]
[392468049,1761522632376,-391.94,0.00033007,2]
[392468050,1761522632385,-500.0,0.00033037,7]
[392468051,1761522632395,-500.0,0.00033412,7]
[392468052,1761522632408,-391.94,0.00034107,2]
[392468053,1761522632418,-500.0,0.00034489,7]
[392468054,1761522632427,-500.0,0.00034551,7]
[392468055,1761522632437,-500.0,0.0003457,7]
[392468056,1761522632447,-500.0,0.00034837,7]
[392468057,1761522632457,-500.0,0.00034867,7]
[392468058,1761522632468,-754.0,0.00034959,3]
[392468059,1761522632480,-500.0,0.0003496,7]
[392468060,1761522632491,-500.0,0.00035038,30]
[392468061,1761522632502,-391.94,0.00035207,2]
[392468062,1761522632512,-500.0,0.00035275,30]
[392468064,1761522632522,-400.0,0.00035513,2]
[392468065,1761522632532,-223.0,0.00035513,3]
[392468066,1761522632541,-150.0,0.00035814,2]
[392468067,1761522632551,-500.0,0.00035877,30]
[392468068,1761522632561,-500.0,0.00035999,9]
[392468069,1761522632571,-586.33,0.00035999,9]
[392468070,1761522632580,-500.0,0.00036193,30]
[392468071,1761522632591,-391.94,0.00036307,2]
[392468073,1761522632600,-500.0,0.00036395,30]
[392468075,1761522632610,-500.0,0.00036866,30]
[392468077,1761522632621,-500.0,0.00037253,30]
[392468079,1761522632631,-391.94,0.00037408,2]
[392468081,1761522632640,-500.0,0.00037482,30]
[392468083,1761522632650,-250.0,0.00037514,2]
[392468086,1761522632661,-202.36,0.00037577,30]
[392468088,1761522632671,-500.0,0.00037698,30]
[392468090,1761522632681,-500.0,0.00037699,30]
[392468092,1761522632691,-282.163,0.00037971,50]
[392468094,1761522632701,-560.0,0.00038058,2]
[392468096,1761522632711,-500.0,0.00038097,30]
[392468098,1761522632720,-500.0,0.00038119,30]
[392468100,1761522632731,-500.0,0.00038149,30]
[392468102,1761522632741,-900.0,0.00038209,30]
[392468104,1761522632751,-51663.56,0.00038272,2]
[392468107,1761522632761,-475.93135235,0.00038426,2]
[392468109,1761522632771,-999.0,0.00038443,3]
[392468111,1761522632785,-500.0,0.00038449,30]
[392468112,1761522632795,-391.94,0.00038508,2]
[392468113,1761522632805,-150.0,0.00038552,2]
[392468114,1761522632816,-500.0,0.00038733,30]
[392468115,1761522632826,-1250.0,0.0003886,7]
[392468116,1761522632836,-200.0,0.00038865,30]
[392468117,1761522632846,-300.0,0.00038865,30]
[392468118,1761522632860,-500.0,0.00038949,30]
[392468119,1761522632870,-500.0,0.00039143,30]
[392468120,1761522632881,-589.8288358,0.00039154,30]
[392468121,1761522632891,-500.0,0.00039293,30]
[392468122,1761522632903,-219.38699035,0.00039326,15]
[392468123,1761522632918,-511.65,0.00039326,15]
[392468124,1761522632928,-3413.0,0.00039327,2]
[392468126,1761522632939,-819.0,0.00039327,2]
[392468128,1761522632950,-2054.0,0.00039327,2]
[392468130,1761522632961,-573.0,0.00039327,2]
[392468132,1761522632972,-277.178,0.00039327,2]
[392468134,1761522632982,-6585.0,0.00039327,2]
[392468137,1761522632993,-3489.0,0.00039327,2]
[392468139,1761522633003,-591.177,0.00039327,2]
[392468140,1761522633013,-166.67,0.0003947,2]
[392468141,1761522633023,-391.94,0.00039608,2]
[392468143,1761522633034,-219.84184471,0.00040488,4]
[392468145,1761522633045,-877.35466214,0.00040615,30]
[392468147,1761522633060,-802.37679725,0.00040637,30]
[392468149,1761522633071,-168.0,0.00040681,2]
[392468150,1761522633083,-391.94,0.00040708,2]
[392468151,1761522633260,-450.0,0.00040784,5]
[392468152,1761522633271,-343.49514313,0.00041,120]
[392468153,1761522633280,-168.0,0.00041514,2]
[392468154,1761522633290,-168.0,0.00041562,2]
[392468155,1761522633301,-168.0,0.00041685,2]
[392468156,1761522633311,-391.94,0.00041808,2]
[392468157,1761522633320,-685.95274215,0.00042,120]
[392468158,1761522633329,-150.0,0.00042092,2]
[392468159,1761522633339,-1627.0,0.000422,2]
[392468160,1761522633348,-155.32,0.00042246,2]
[392468161,1761522633358,-819.0,0.00042327,2]
[392468162,1761522633367,-2054.0,0.00042327,2]
[392468163,1761522633375,-573.0,0.00042327,2]
[392468164,1761522633385,-6585.0,0.00042327,2]
[392468165,1761522633394,-3489.0,0.00042327,2]
[392468166,1761522633403,-558.0,0.00042327,2]
[392468167,1761522633412,-150.0,0.00042431,2]
[392468168,1761522633421,-1000.0,0.00042492,2]
[392468169,1761522633430,-150.0,0.00042528,2]
[392468170,1761522633439,-214.44175965,0.00042592,30]
[392468171,1761522633448,-21549.08826864,0.00042592,30]
[392468172,1761522633458,-168.0,0.00042719,2]
[392468173,1761522633467,-166.67,0.00042727,2]
[392468174,1761522633476,-154.39,0.00042945,2]
[392468175,1761522633487,-166.0,0.00043,90]
[392468176,1761522633496,-168.0,0.00043431,2]
[392468177,1761522633506,-168.0,0.00043566,2]
[392468178,1761522633515,-168.0,0.00043727,2]
[392468179,1761522633524,-168.0,0.00043793,2]
[392468180,1761522633533,-500.0,0.00043834,7]
[392468181,1761522633542,-500.0,0.00043835,120]
[392468182,1761522633551,-1000.0,0.00043835,120]
[392468183,1761522633561,-501.35433576,0.00043835,2]
[392468184,1761522633571,-500.0,0.00043835,120]
[392468185,1761522633580,-500.0,0.00043835,2]
[392468186,1761522633589,-500.0,0.00043835,2]
[392468187,1761522633599,-300.0,0.00043835,120]
[392468188,1761522633609,-500.0,0.00043835,120]
[392468189,1761522633619,-500.0,0.00043835,120]
[392468190,1761522633629,-516.60623192,0.00043835,120]
[392468191,1761522633638,-300.0,0.00043835,2]
[392468192,1761522633647,-600.0,0.00043835,120]
[392468193,1761522633656,-500.0,0.00043835,120]
[392468194,1761522633668,-500.0,0.00043835,120]
[392468195,1761522633678,-500.0,0.00043835,7]
[392468196,1761522633687,-500.0,0.00043835,120]
[392468197,1761522633697,-500.0,0.00043835,120]
[392468198,1761522633707,-150.0,0.00044,30]
[392468199,1761522633718,-500.0,0.00044109,120]
[392468200,1761522633727,-1000.0,0.00044109,120]
[392468201,1761522633740,-500.0,0.00044109,120]
[392468202,1761522633750,-500.0,0.00044109,2]
[392468203,1761522633761,-500.0,0.00044109,2]
[392468204,1761522633770,-300.0,0.00044109,120]
[392468205,1761522633779,-500.0,0.00044109,120]
[392468206,1761522633789,-300.0,0.00044109,2]
[392468207,1761522633798,-600.0,0.00044109,120]
[392468208,1761522633807,-500.0,0.00044109,120]
[392468209,1761522633817,-500.0,0.00044109,120]
[392468210,1761522633826,-231.26111611,0.00044109,7]
[392468211,1761522633835,-500.0,0.00044109,120]
[392468212,1761522633844,-500.0,0.00044109,120]
[392468213,1761522633854,-168.0,0.0004414,2]
[392468214,1761522633863,-475.59,0.00044329,30]
[392468215,1761522633872,-414.6,0.00044356,30]
[392468216,1761522633882,-500.0,0.00044383,120]
[392468217,1761522633891,-1028.85845981,0.00044383,120]
[392468218,1761522633900,-500.0,0.00044383,120]
[392468219,1761522633910,-500.0,0.00044383,2]
[392468220,1761522633920,-346.63314528,0.00044383,2]
[392468221,1761522633929,-300.0,0.00044383,120]
[392468222,1761522633939,-247.15,0.00044383,120]
[392468223,1761522633949,-300.0,0.00044383,2]
[392468224,1761522633959,-600.0,0.00044383,120]
[392468225,1761522633968,-500.0,0.00044383,120]
[392468226,1761522633978,-500.0,0.00044383,120]
[392468227,1761522633989,-500.0,0.00044383,120]
[392468228,1761522633998,-439.1,0.00044383,120]
[392468229,1761522634008,-614.63,0.00044384,30]
[392468230,1761522634018,-168.0,0.00044398,2]
[392468231,1761522634028,-176.70461,0.0004455,23]
[392468232,1761522634038,-500.0,0.00044656,120]
[392468233,1761522634049,-500.0,0.00044656,2]
[392468234,1761522634060,-185.72496502,0.00044656,2]
[392468235,1761522634069,-500.0,0.00044656,120]
[392468236,1761522634079,-301.23646682,0.00044656,2]
[392468237,1761522634088,-500.0,0.00044656,120]
[392468238,1761522634098,-500.0,0.00044656,120]
[392468239,1761522634108,-2036.41,0.00044656,120]
[392468240,1761522634118,-500.0,0.00044657,120]
[392468241,1761522634127,-500.0,0.00044657,120]
[392468242,1761522634137,-500.0,0.00044657,2]
[392468243,1761522634147,-300.0,0.00044657,120]
[392468244,1761522634157,-600.0,0.00044657,120]
[392468245,1761522634166,-500.0,0.00044657,120]
[392468246,1761522634176,-500.0,0.00044657,120]
[392468247,1761522634185,-500.0,0.00044657,120]
[392468248,1761522634194,-500.0,0.00044657,120]
[392468249,1761522634203,-500.0,0.00044657,120]
[392468250,1761522634213,-500.0,0.00044657,120]
[392468251,1761522634222,-532.0,0.00044657,120]
[392468252,1761522634232,-500.0,0.00044657,120]
[392468253,1761522634241,-500.0,0.00044657,120]
[392468254,1761522634251,-202.36,0.00044786,120]
[392468255,1761522634260,-1000.0,0.0004479,2]
[392468256,1761522634270,-166.0,0.00044877,90]
[392468257,1761522634279,-173.87949935,0.00044879,28]
[392468258,1761522634288,-487.66633091,0.00044889,15]
[392468259,1761522634298,-5000.0,0.0004489,120]
[392468260,1761522634307,-21532.9379466,0.0004489,2]
[392468261,1761522634356,-448.78414759,0.0004489,2]
[392468262,1761522634367,-1372.2516335,0.0004489,2]
[392468263,1761522634378,-4015.62873613,0.0004489,2]
[392468264,1761522634389,-1042.45507119,0.0004489,2]
[392468265,1761522634400,-3440.69946499,0.0004489,2]
[392468266,1761522634409,-487.66633087,0.0004489,15]
[392468267,1761522634418,-487.66633087,0.00044891,15]
[392468268,1761522634428,-487.66633087,0.00044893,15]
[392468269,1761522634437,-487.66633087,0.00044894,15]
[392468270,1761522634447,-487.66633087,0.00044895,15]
[392468271,1761522634456,-487.66633087,0.00044896,15]
[392468272,1761522634466,-487.66633087,0.00044898,15]
[392468273,1761522634475,-487.66633087,0.00044899,15]
[392468274,1761522634484,-500.0,0.00044899,2]
[392468275,1761522634493,-200.20018623,0.000449,17]
[392468276,1761522634503,-487.66633087,0.000449,15]
[392468277,1761522634512,-14300.5934161,0.000449,120]
[392468278,1761522634524,-1885.61083283,0.000449,120]
[392468279,1761522634534,-1190.4258665,0.000449,120]
[392468280,1761522634545,-529.05,0.000449,120]
[392468281,1761522634556,-250.0,0.000449,120]